Workbook

Sheet Лист1
A1: Школа | F1: Утвердил: | G1: должность | H1: Директор МАУ "МКШП"
A2: Типовое примерное меню приготавливаемых блюд | G2: фамилия | H2: Михин А.С.
A3: Возрастная категория | E3: 7-11 лет | G3: дата | H3: 27 | I3: 8 | J3: 2024
H4: день | I4: месяц | J4: год
A5: Неделя | B5: День недели | C5: Прием пищи | D5: Раздел меню | E5: Блюда | F5: Вес блюда, г | G5: Белки | H5: Жиры | I5: Углеводы | J5: Калорийность | K5: № рецептуры | L5: Цена
A6: 1 | B6: 1 | C6: Завтрак | D6: гор.блюдо | E6: Каша рисовая молочная с маслом | F6: 205 | G6: 215.25 | H6: 6 | I6: 7 | J6: 32 | K6: 56 | L6: 14.77
D7: гор.напиток | E7: Чай с сахаром и лимоном | F7: 200 | G7: 15.13 | H7: 0 | I7: 4 | J7: 15 | K7: 113 | L7: 1.92
D8: хлеб | E8: Батон пшеничный | F8: 25 | G8: 63.05 | H8: 1.8 | I8: 0.68 | J8: 12.28 | K8: 121 | L8: 1.38
D9: хлеб черн. | E9: Хлеб ржаной | F9: 20 | G9: 181.3 | H9: 5.7 | I9: 1.1 | J9: 37.2 | K9: 120 | L9: 0.85
D10: закуска | E10: Блинчики с шоколадным соусом | F10: 90 | G10: 254.38 | H10: 9 | I10: 10 | J10: 46.5 | K10: 166 | L10: 12.71
D11: сладкое | E11: Фруктовый десерт | F11: 100 | G11: 36.6 | H11: 0 | I11: 0 | J11: 8 | L11: 16
D15: итого | F15: =SUM(F6:F14) -> 640 | G15: =SUM(G6:G14) -> 765.71 | H15: 22.5 | I15: 22.78 | J15: 150.98 | L15: =SUM(L6:L14) -> 47.63
A16: =A6 -> 1 | B16: =B6 -> 1 | C16: Обед | D16: закуска | E16: Фрукты в ассортименте (яблоко свежее) | F16: 150 | G16: 46 | H16: 0.4 | I16: 0 | J16: 11.3 | K16: 24 | L16: 13.65
D17: 1 блюдо | E17: Щи с мясом и сметаной | F17: 200 | G17: 54.87 | H17: 3 | I17: 3.14 | J17: 3.56 | K17: 30 | L17: 12.41
D18: 2 блюдо | E18: Плов из булгура с мясом | F18: 250 | G18: 233.7 | H18: 9.01 | I18: 15.53 | J18: 15.19 | K18: 303 | L18: 46.37
D19: гарнир
D20: сладкое
D21: хлеб бел. | E21: Хлеб пшеничный | F21: 30 | G21: 124 | H21: 2.13 | I21: 0.21 | J21: 13.26 | K21: 119 | L21: 0.91
D22: хлеб черн. | E22: Хлеб ржаной | F22: 20 | G22: 181.3 | H22: 5.7 | I22: 1.1 | J22: 37.2 | K22: 120 | L22: 0.85
D23: напиток | E23: Компот из сухофруктов | F23: 200 | G23: 29.74 | H23: 0.18 | I23: 0 | J23: 7.42 | K23: 98 | L23: 3.17
D28: итого | F28: =SUM(F16:F27) -> 850 | G28: =SUM(G16:G27) -> 669.61 | H28: 20.42 | I28: 19.98 | J28: 87.93 | L28: =SUM(L16:L27) -> 77.36
A29: =A6 -> 1 | B29: =B6 -> 1 | C29: Итого за день: | F29: =F15+F28 -> 1490 | G29: =G15+G28 -> 1435.32 | H29: 42.92 | I29: 42.76 | J29: 238.91 | L29: =L15+L28 -> 124.99
A30: 1 | B30: 2 | C30: Завтрак | D30: гор.блюдо | E30: Каша гречневая вязкая с маслом | F30: 150 | G30: 89.5 | H30: 3 | I30: 3 | J30: 14 | K30: 227 | L30: 4.24
D31: гор.напиток | E31: Напиток плодово-ягодный витаминизированный | F31: 200 | G31: 29 | H31: 0 | I31: 0 | J31: 7 | K31: 104 | L31: 5.2
D32: хлеб | E32: Хлеб пшеничный | F32: 25 | G32: 72 | H32: 2.13 | I32: 0.21 | J32: 13.26 | K32: 119 | L32: 0.76
D33: хлеб черн. | E33: Хлеб ржаной | F33: 20 | G33: 181.3 | H33: 5.7 | I33: 1.1 | J33: 37.2 | K33: 120 | L33: 0.85
D34: кисломол. | E34: Сыр сливочный в индивидуальной упаковке | F34: 17 | G34: 72 | H34: 0 | I34: 0 | J34: 0 | K34: этик. | L34: 7.5
D35: 2 блюдо | E35: Курица запеченная | F35: 90 | G35: 255.3 | H35: 25 | I35: 17 | J35: 0 | K35: 81 | L35: 32.31
D39: итого | F39: =SUM(F30:F38) -> 502 | G39: =SUM(G30:G38) -> 699.1 | H39: =SUM(H30:H38) -> 35.83 | I39: =SUM(I30:I38) -> 21.31 | J39: =SUM(J30:J38) -> 71.46 | L39: 50.86
A40: =A30 -> 1 | B40: =B30 -> 2 | C40: Обед | D40: закуска | E40: Кукуруза консервированная | F40: 60 | G40: 68 | H40: 2 | I40: 0 | J40: 15 | K40: 133 | L40: 14.06
D41: 1 блюдо | E41: Суп рыбный с крупой (рыбные консервы) | F41: 200 | G41: 63 | H41: 2 | I41: 3 | J41: 6 | K41: 36 | L41: 8.68
D42: 2 блюдо | E42: Чахохбили | F42: 90 | G42: 256 | H42: 23 | I42: 17 | J42: 3 | K42: 150 | L42: 32.79
D43: гарнир | E43: Картофельное пюре с маслом | F43: 150 | G43: 113 | H43: 2 | I43: 5 | J43: 14 | K43: 50 | L43: 10.32
D44: сладкое
D45: хлеб бел. | E45: Хлеб пшеничный | F45: 30 | G45: 72 | H45: 2.13 | I45: 0.21 | J45: 13.26 | K45: 119 | L45: 0.91
D46: хлеб черн. | E46: Хлеб ржаной | F46: 20 | G46: 181.3 | H46: 5.7 | I46: 1.1 | J46: 37.2 | K46: 120 | L46: 0.85
D47: напиток | E47: Компот из смеси фруктов и ягод | F47: 200 | G47: 26 | H47: 0 | I47: 0 | J47: 6 | K47: 216 | L47: 6.63
D52: итого | F52: =SUM(F40:F51) -> 750 | G52: =SUM(G40:G51) -> 779.3 | H52: =SUM(H40:H51) -> 36.83 | I52: =SUM(I40:I51) -> 26.31 | J52: =SUM(J40:J51) -> 94.46 | L52: 74.24
A53: =A30 -> 1 | B53: =B30 -> 2 | C53: Итого за день: | F53: =F39+F52 -> 1252 | G53: =G39+G52 -> 1478.4 | H53: =H39+H52 -> 72.66 | I53: =I39+I52 -> 47.62 | J53: =J39+J52 -> 165.92 | L53: 125.1
A54: 1 | B54: 3 | C54: Завтрак | D54: гор.блюдо | E54: Картофельное пюре с маслом | F54: 150 | G54: 113 | H54: 2 | I54: 5 | J54: 14 | K54: 50 | L54: 10.32
D55: гор.напиток | E55: Компот из сухофруктов | F55: 200 | G55: 30 | H55: 0 | I55: 0 | J55: 7 | K55: 98 | L55: 3.17
D56: хлеб | E56: Хлеб пшеничный | F56: 20 | G56: 72 | H56: 2.13 | I56: 0.21 | J56: 13.26 | K56: 119 | L56: 0.6
D57: хлеб черн. | E57: Хлеб ржаной | F57: 20 | G57: 181.3 | H57: 5.7 | I57: 1.1 | J57: 37.2 | K57: 120 | L57: 0.85
D58: 2 блюдо | E58: Мясо тушеное | F58: 90 | G58: 294 | H58: 15 | I58: 25 | J58: 3 | K58: 90 | L58: 38.84
D59: закуска | E59: Огурцы порционные | F59: 60 | G59: 10 | H59: 0 | I59: 0 | J59: 2 | K59: 28 | L59: 6.6
D63: итого | F63: =SUM(F54:F62) -> 540 | G63: =SUM(G54:G62) -> 700.3 | H63: =SUM(H54:H62) -> 24.83 | I63: =SUM(I54:I62) -> 31.31 | J63: =SUM(J54:J62) -> 76.46 | L63: 60.38
A64: =A54 -> 1 | B64: =B54 -> 3 | C64: Обед | D64: закуска | E64: Огурцы порционные | F64: 60 | G64: 10 | H64: 0 | I64: 0 | J64: 2 | K64: 28 | L64: 6.6
D65: 1 блюдо | E65: Свекольник с мясом и сметаной | F65: 200 | G65: 71 | H65: 3 | I65: 4 | J65: 5 | K65: 32 | L65: 14.41
D66: 2 блюдо | E66: Филе птицы в кисло-сладком соусе | F66: 90 | G66: 249 | H66: 15 | I66: 18 | J66: 6 | K66: 269 | L66: 26.33
D67: гарнир | E67: Спагетти отварные с маслом | F67: 150 | G67: 149 | H67: 4 | I67: 3 | J67: 27 | K67: 65 | L67: 5.14
D68: сладкое
D69: хлеб бел. | E69: Хлеб пшеничный | F69: 30 | G69: 72 | H69: 2.13 | I69: 0.21 | J69: 13.26 | K69: 119 | L69: 0.91
D70: хлеб черн. | E70: Хлеб ржаной | F70: 20 | G70: 181.3 | H70: 5.7 | I70: 1.1 | J70: 37.2 | K70: 120 | L70: 0.85
D71: напиток | E71: Чай с сахаром | F71: 200 | G71: 14 | H71: 0 | I71: 0 | J71: 6 | K71: 114 | L71: 1.12
D76: итого | F76: =SUM(F64:F75) -> 750 | G76: =SUM(G64:G75) -> 746.3 | H76: =SUM(H64:H75) -> 29.83 | I76: =SUM(I64:I75) -> 26.31 | J76: =SUM(J64:J75) -> 96.46 | L76: 55.36
A77: =A54 -> 1 | B77: =B54 -> 3 | C77: Итого за день: | F77: =F63+F76 -> 1290 | G77: =G63+G76 -> 1446.6 | H77: =H63+H76 -> 54.66 | I77: =I63+I76 -> 57.62 | J77: =J63+J76 -> 172.92 | L77: 115.74
A78: 1 | B78: 4 | C78: Завтрак | D78: гор.блюдо | E78: Пудинг из творога с изюмом с яблочным топпингом | F78: 150 | G78: 227 | H78: 13 | I78: 10 | J78: 22 | K78: 304 | L78: 40.27
D79: гор.напиток | E79: Чай с сахаром и лимоном | F79: 200 | G79: 15.13 | H79: 0 | I79: 4 | J79: 15 | K79: 113 | L79: 1.92
D80: хлеб | E80: Батон пшеничный | F80: 30 | G80: 63.05 | H80: 1.8 | I80: 0.68 | J80: 12.28 | K80: 121 | L80: 1.65
D81: хлеб черн. | E81: Хлеб ржаной | F81: 20 | G81: 181.3 | H81: 5.7 | I81: 1.1 | J81: 37.2 | K81: 120 | L81: 0.85
D82: закуска | E82: Фрукты в ассортименте (яблоко свежее) | F82: 150 | G82: 46 | H82: 0.4 | I82: 0 | J82: 11.3 | K82: 24 | L82: 13.65
D87: итого | F87: =SUM(F78:F86) -> 550 | G87: =SUM(G78:G86) -> 532.48 | H87: =SUM(H78:H86) -> 20.9 | I87: =SUM(I78:I86) -> 15.78 | J87: =SUM(J78:J86) -> 97.78 | L87: 58.34
A88: =A78 -> 1 | B88: =B78 -> 4 | C88: Обед | D88: закуска | E88: Фрукты в ассортименте (яблоко свежее) | F88: 150 | G88: 46 | H88: 0.4 | I88: 0 | J88: 11.3 | K88: 24 | L88: 13.65
D89: 1 блюдо | E89: Суп из овощей с гренками | F89: 200 | G89: 39 | H89: 1 | I89: 3 | J89: 7 | K89: 46/1 | L89: 2.81
D90: 2 блюдо | E90: Котлета мясная | F90: 90 | G90: 250 | H90: 17 | I90: 17 | J90: 8 | K90: 193 | L90: 29.77
D91: гарнир | E91: Каша гречневая рассыпчатая с маслом | F91: 150 | G91: 140 | H91: 5 | I91: 3 | J91: 23 | K91: 54 | L91: 5.41
D92: сладкое
D93: хлеб бел. | E93: Хлеб пшеничный | F93: 20 | G93: 72 | H93: 2.13 | I93: 0.21 | J93: 13.26 | K93: 119 | L93: 0.6
D94: хлеб черн. | E94: Хлеб ржаной | F94: 20 | G94: 181.3 | H94: 5.7 | I94: 1.1 | J94: 37.2 | K94: 120 | L94: 0.85
D95: напиток | E95: Сок фруктовый | F95: 200 | G95: 68 | H95: 0 | I95: 0 | J95: 17 | K95: 107 | L95: 8.8
D99: итого | F99: =SUM(F88:F98) -> 830 | G99: =SUM(G88:G98) -> 796.3 | H99: =SUM(H88:H98) -> 31.23 | I99: =SUM(I88:I98) -> 24.31 | J99: =SUM(J88:J98) -> 116.76 | L99: 61.89
A100: =A78 -> 1 | B100: =B78 -> 4 | C100: Итого за день: | F100: =F87+F99 -> 1380 | G100: =G87+G99 -> 1328.78 | H100: =H87+H99 -> 52.13 | I100: =I87+I99 -> 40.09 | J100: =J87+J99 -> 214.54 | L100: 120.23
A101: 1 | B101: 5 | C101: Завтрак | D101: гор.блюдо | E101: Спагетти отварные с маслом | F101: 150 | G101: 149 | H101: 4 | I101: 3 | J101: 27 | K101: 65 | L101: 5.14
D102: гор.напиток | E102: Чай с шиповником | F102: 200 | G102: 39 | H102: 0 | I102: 0 | J102: 9 | K102: 60 | L102: 5.34
D103: хлеб | E103: Хлеб пшеничный | F103: 20 | G103: 72 | H103: 2.13 | I103: 0.21 | J103: 13.26 | K103: 121 | L103: 0.6
D104: хлеб черн. | E104: Хлеб ржаной | F104: 20 | G104: 181.3 | H104: 5.7 | I104: 1.1 | J104: 37.2 | K104: 120 | L104: 0.85
D105: закуска | E105: Помидоры порционные | F105: 60 | G105: 23 | H105: 1 | I105: 0 | J105: 4 | K105: 29 | L105: 6.88
D106: 2 блюдо | E106: Филе птицы тушеное в томатном соусе | F106: 90 | G106: 225 | H106: 17 | I106: 15 | J106: 7 | K106: 80 | L106: 26.76
D111: итого | F111: =SUM(F101:F110) -> 540 | G111: =SUM(G101:G110) -> 689.3 | H111: =SUM(H101:H110) -> 29.83 | I111: =SUM(I101:I110) -> 19.31 | J111: =SUM(J101:J110) -> 97.46 | L111: 45.57
A112: =A101 -> 1 | B112: =B101 -> 5 | C112: Обед | D112: закуска | E112: Маринад из моркови | F112: 60 | G112: 114.37 | H112: 2 | I112: 7 | J112: 10 | K112: 13 | L112: 3.69
D113: 1 блюдо | E113: Суп картофельный с мясом | F113: 200 | G113: 57.8 | H113: 3 | I113: 3 | J113: 5 | K113: 37 | L113: 10.45
D114: 2 блюдо | E114: Рыба тушенная с овощами | F114: 90 | G114: 103.9 | H114: 14 | I114: 3 | J114: 5 | K114: 75 | L114: 25.59
D115: гарнир | E115: Рис отварной с маслом | F115: 150 | G115: 148 | H115: 3 | I115: 3 | J115: 27 | K115: 53 | L115: 9.25
D116: сладкое
D117: хлеб бел. | E117: Хлеб пшеничный | F117: 45 | G117: 72 | H117: 2.13 | I117: 0.21 | J117: 13.26 | K117: 119 | L117: 1.36
D118: хлеб черн. | E118: Хлеб ржаной | F118: 40 | G118: 181.3 | H118: 5.7 | I118: 1.1 | J118: 37.2 | K118: 120 | L118: 1.7
D119: напиток | E119: Напиток плодово-ягодный витаминизированный | F119: 200 | G119: 29.2 | H119: 0 | I119: 0 | J119: 7 | K119: 104 | L119: 5.2
D124: итого | F124: =SUM(F112:F123) -> 785 | G124: =SUM(G112:G123) -> 706.57 | H124: =SUM(H112:H123) -> 29.83 | I124: =SUM(I112:I123) -> 17.31 | J124: =SUM(J112:J123) -> 104.46 | L124: 57.24
A125: =A101 -> 1 | B125: =B101 -> 5 | C125: Итого за день: | F125: =F111+F124 -> 1325 | G125: =G111+G124 -> 1395.87 | H125: =H111+H124 -> 59.66 | I125: =I111+I124 -> 36.62 | J125: =J111+J124 -> 201.92 | L125: 102.81
A126: 2 | B126: 1 | C126: Завтрак | D126: гор.блюдо | E126: Каша кукурузная молочная с маслом | F126: 205 | G126: 113 | H126: 4 | I126: 4 | J126: 17 | K126: 80 | L126: 13.52
D127: гор.напиток | E127: Чай с сахаром | F127: 200 | G127: 14 | H127: 0 | I127: 0 | J127: 6 | K127: 114 | L127: 1.12
D128: хлеб | E128: Хлеб пшеничный | F128: 30 | G128: 72 | H128: 2.13 | I128: 0.21 | J128: 13.26 | K128: 121 | L128: 0.6
D129: хлеб черн. | E129: Хлеб ржаной | F129: 20 | G129: 181.3 | H129: 5.7 | I129: 1.1 | J129: 37.2 | K129: 120 | L129: 0.85
D130: кисломол. | E130: Сыр порциями | F130: 15 | G130: 310 | H130: 24 | I130: 24 | J130: 0 | K130: 1 | L130: 6.6
D131: сладкое | E131: Молочный десерт | F131: 200 | G131: 287 | H131: 4 | I131: 7 | J131: 41 | K131: этикет. | L131: 33
D135: итого | F135: =SUM(F126:F134) -> 670 | G135: =SUM(G126:G134) -> 977.3 | H135: 39.83 | I135: 36.31 | J135: 114.46 | L135: =SUM(L126:L134) -> 55.69
A136: =A126 -> 2 | B136: =B126 -> 1 | C136: Обед | D136: закуска | E136: Фрукты в ассортименте (яблоко свежее) | F136: 150 | G136: 0.4 | H136: 0 | I136: 11.3 | J136: 46 | K136: 24 | L136: 13.65
D137: 1 блюдо | E137: Суп куриный с вермишелью | F137: 200 | G137: 4.8 | H137: 7.6 | I137: 9 | J137: 123.6 | K137: 35 | L137: 9.57
D138: 2 блюдо | E138: Гуляш | F138: 90 | G138: 18.13 | H138: 17.05 | I138: 3.69 | J138: 240.96 | K138: 89 | L138: 30.83
D139: гарнир | E139: Рис отварной с маслом | F139: 150 | G139: 3.3 | H139: 4.95 | I139: 32.25 | J139: 186.45 | K139: 53 | L139: 10.87
D140: напиток | E140: Компот из смеси фруктов и ягод | F140: 200 | G140: 0.26 | H140: 0 | I140: 15.46 | J140: 62 | K140: 216 | L140: 6.63
D141: хлеб бел. | E141: Хлеб пшеничный | F141: 20 | G141: 2.13 | H141: 0.21 | I141: 13.26 | J141: 72 | K141: 119 | L141: 0.91
D142: хлеб черн. | E142: Хлеб ржаной | F142: 20 | G142: 1.14 | H142: 0.22 | I142: 7.44 | J142: 36.26 | K142: 120 | L142: 0.85
D148: итого | F148: =SUM(F136:F147) -> 830 | G148: =SUM(G136:G147) -> 30.16 | H148: 30.03 | I148: 92.4 | J148: 767.27 | L148: =SUM(L136:L147) -> 73.31
A149: =A126 -> 2 | B149: =B126 -> 1 | C149: Итого за день: | F149: =F135+F148 -> 1500 | G149: =G135+G148 -> 1007.46 | H149: =H135+H148 -> 69.86 | I149: =I135+I148 -> 128.71 | J149: =J135+J148 -> 881.73 | L149: 129
A150: 2 | B150: 2 | C150: Завтрак | D150: гор.блюдо | E150: Каша гречневая вязкая с маслом | F150: 150 | G150: 89.5 | H150: 3 | I150: 3 | J150: 14 | K150: 227 | L150: 4.24
D151: гор.напиток | E151: Кисель витаминизированный плодово – ягодный | F151: 200 | G151: 41.2 | H151: 0 | I151: 0 | J151: 2 | K151: 95 | L151: 5.66
D152: хлеб | E152: Хлеб пшеничный | F152: 20 | G152: 72 | H152: 2.13 | I152: 0.21 | J152: 13.26 | K152: 121 | L152: 0.6
D153: хлеб черн. | E153: Хлеб ржаной | F153: 20 | G153: 181.3 | H153: 5.7 | I153: 1.1 | J153: 37.2 | K153: 120 | L153: 0.85
D154: закуска | E154: Фрукты в ассортименте (яблоко свежее) | F154: 150 | G154: 46 | H154: 0.4 | I154: 0 | J154: 11.3 | K154: 24 | L154: 13.65
D155: 2 блюдо | E155: Курица запеченная | F155: 90 | G155: 255.3 | H155: 25 | I155: 17 | J155: 0 | K155: 81 | L155: 32.31
D160: итого | F160: =SUM(F150:F159) -> 630 | G160: =SUM(G150:G159) -> 685.3 | H160: 36.23 | I160: 21.31 | J160: 77.76 | L160: =SUM(L150:L159) -> 57.31
A161: =A150 -> 2 | B161: =B150 -> 2 | C161: Обед | D161: закуска | E161: Горошек консервированный | F161: 60 | G161: 41 | H161: 3 | I161: 0 | J161: 7 | K161: 172 | L161: 7.5
D162: 1 блюдо | E162: Щи вегетарианские со сметаной | F162: 200 | G162: 31 | H162: 1 | I162: 1 | J162: 2 | K162: 237 | L162: 4.65
D163: 2 блюдо | E163: Печень "По - строгановски" | F163: 90 | G163: 154 | H163: 15 | I163: 9 | J163: 4 | K163: 85 | L163: 25.31
D164: гарнир | E164: Макароны отварные с маслом | F164: 150 | G164: 149 | H164: 4 | I164: 3 | J164: 27 | K164: 64 | L164: 5.14
D165: сладкое
D166: хлеб бел. | E166: Хлеб пшеничный | F166: 45 | G166: 72 | H166: 2.13 | I166: 0.21 | J166: 13.26 | K166: 119 | L166: 1.36
D167: хлеб черн. | E167: Хлеб ржаной | F167: 40 | G167: 181.3 | H167: 5.7 | I167: 1.1 | J167: 37.2 | K167: 120 | L167: 1.7
D168: напиток | E168: Кисель витаминизированный плодово – ягодный | F168: 200 | G168: 41.2 | H168: 0 | I168: 0 | J168: 2 | K168: 95 | L168: 5.66
D173: итого | F173: =SUM(F161:F172) -> 785 | G173: =SUM(G161:G172) -> 669.5 | H173: 30.83 | I173: 14.31 | J173: 92.46 | L173: =SUM(L161:L172) -> 51.32
A174: =A150 -> 2 | B174: =B150 -> 2 | C174: Итого за день: | F174: =F160+F173 -> 1415 | G174: =G160+G173 -> 1354.8 | H174: =H160+H173 -> 67.06 | I174: =I160+I173 -> 35.62 | J174: =J160+J173 -> 170.22 | L174: 108.63
A175: 2 | B175: 3 | C175: Завтрак | D175: гор.блюдо | E175: Картофельное пюре с маслом | F175: 150 | G175: 113 | H175: 2 | I175: 5 | J175: 14 | K175: 10.32 | L175: 50
D176: гор.напиток | E176: Компот из сухофруктов | F176: 200 | G176: 29.74 | H176: 0.18 | I176: 0 | J176: 7.42 | K176: 3.17 | L176: 98
D177: хлеб | E177: Хлеб пшеничный | F177: 35 | G177: 72 | H177: 2.13 | I177: 0.21 | J177: 13.26 | K177: 1.06 | L177: 121
D178: хлеб черн. | E178: Хлеб ржаной | F178: 20 | G178: 181.3 | H178: 5.7 | I178: 1.1 | J178: 37.2 | K178: 0.85 | L178: 120
D179: закуска | E179: Ассорти из свежих овощей | F179: 60 | G179: 19 | H179: 0 | I179: 1 | J179: 3 | K179: 6.75 | L179: 23
D180: 2 блюдо | E180: Рыба тушенная с овощами | F180: 90 | G180: 103.9 | H180: 14 | I180: 3 | J180: 5 | K180: 25.59 | L180: 75
D184: итого | F184: =SUM(F175:F183) -> 555 | G184: =SUM(G175:G183) -> 518.94 | H184: 24.01 | I184: 10.31 | J184: 79.88 | L184: =SUM(L175:L183) -> 487
A185: =A175 -> 2 | B185: =B175 -> 3 | C185: Обед | D185: закуска | E185: Помидоры порционные | F185: 60 | G185: 23 | H185: 1 | I185: 0 | J185: 4 | K185: 6.88 | L185: 29
D186: 1 блюдо | E186: Уха с рыбой | F186: 200 | G186: 49 | H186: 3 | I186: 2 | J186: 4 | K186: 10.59 | L186: 48
D187: 2 блюдо | E187: Курица запеченная с соусом и зеленью | F187: 90 | G187: 310 | H187: 27 | I187: 22 | J187: 1.78 | K187: 32.81 | L187: 270
D188: гарнир | E188: Каша гречневая рассыпчатая с маслом | F188: 150 | G188: 140 | H188: 5 | I188: 3 | J188: 23 | K188: 5.41 | L188: 54
D189: сладкое
D190: хлеб бел. | E190: Хлеб пшеничный | F190: 20 | G190: 72 | H190: 2.13 | I190: 0.21 | J190: 13.26 | K190: 0.6 | L190: 119
D191: хлеб черн. | E191: Хлеб ржаной | F191: 20 | G191: 181.3 | H191: 5.7 | I191: 1.1 | J191: 37.2 | K191: 0.85 | L191: 120
D192: напиток | E192: Сок фруктовый | F192: 200 | G192: 68 | H192: 0 | I192: 0 | J192: 17 | K192: 8.8 | L192: 107
D196: итого | F196: =SUM(F185:F195) -> 740 | G196: =SUM(G185:G195) -> 843.3 | H196: 43.83 | I196: 28.31 | J196: 100.24 | L196: =SUM(L185:L195) -> 747
A197: =A175 -> 2 | B197: =B175 -> 3 | C197: Итого за день: | F197: =F184+F196 -> 1295 | G197: =G184+G196 -> 1362.24 | H197: =H184+H196 -> 67.84 | I197: =I184+I196 -> 38.62 | J197: =J184+J196 -> 180.12 | L197: 1234
A198: 2 | B198: 4 | C198: Завтрак | D198: гор.блюдо | E198: Омлет натуральный | F198: 150 | G198: 147 | H198: 10 | I198: 11 | J198: 2 | K198: 66 | L198: 21.89
D199: гор.напиток | E199: Какао с молоком | F199: 200 | G199: 74 | H199: 3 | I199: 3 | J199: 9 | K199: 115 | L199: 12.9
D200: хлеб | E200: Бутерброд с сыром | F200: 35 | G200: 199 | H200: 10 | I200: 9 | J200: 20 | K200: 290 | L200: 10.44
D201: хлеб черн. | E201: Хлеб ржаной | F201: 20 | G201: 181.3 | H201: 5.7 | I201: 1.1 | J201: 37.2 | K201: 120 | L201: 0.85
D202: закуска | E202: Фрукты в ассортименте (яблоко свежее) | F202: 150 | G202: 46 | H202: 0.4 | I202: 0 | J202: 11.3 | K202: 24 | L202: 13.65
D207: итого | F207: =SUM(F198:F206) -> 555 | G207: =SUM(G198:G206) -> 647.3 | H207: 29.1 | I207: 24.1 | J207: 79.5 | L207: =SUM(L198:L206) -> 59.73
A208: =A198 -> 2 | B208: =B198 -> 4 | C208: Обед | D208: закуска | E208: Огурцы порционные | F208: 60 | G208: 10 | H208: 0 | I208: 0 | J208: 2 | K208: 28 | L208: 6.6
D209: 1 блюдо | E209: Суп гороховый с мясом | F209: 200 | G209: 71 | H209: 5 | I209: 3 | J209: 7 | K209: 34 | L209: 9.52
D210: 2 блюдо | E210: Жаркое с мясом | F210: 250 | G210: 185 | H210: 7 | I210: 13 | J210: 10 | K210: 86 | L210: 36.33
D211: гарнир
D212: сладкое
D213: хлеб бел. | E213: Хлеб пшеничный | F213: 30 | G213: 193 | H213: 2.13 | I213: 0.21 | J213: 13.26 | K213: 119 | L213: 0.91
D214: хлеб черн. | E214: Хлеб ржаной | F214: 20 | G214: 181.3 | H214: 5.7 | I214: 1.1 | J214: 37.2 | K214: 120 | L214: 0.85
D215: напиток | E215: Компот из сухофруктов | F215: 200 | G215: 29.74 | H215: 0.18 | I215: 0 | J215: 7.42 | K215: 98 | L215: 3.17
D220: итого | F220: =SUM(F208:F219) -> 760 | G220: =SUM(G208:G219) -> 670.04 | H220: 20.01 | I220: 17.31 | J220: 76.88 | L220: =SUM(L208:L219) -> 57.38
A221: =A198 -> 2 | B221: =B198 -> 4 | C221: Итого за день: | F221: =F207+F220 -> 1315 | G221: =G207+G220 -> 1317.34 | H221: =H207+H220 -> 49.11 | I221: =I207+I220 -> 41.41 | J221: =J207+J220 -> 156.38 | L221: 117.11
A222: 2 | B222: 5 | C222: Завтрак | D222: гор.блюдо | E222: Рис отварной с маслом | F222: 150 | G222: 148 | H222: 3 | I222: 3 | J222: 27 | K222: 53 | L222: 9.25
D223: гор.напиток | E223: Сок фруктовый | F223: 200 | G223: 68 | H223: 0 | I223: 0 | J223: 17 | K223: 107 | L223: 8.8
D224: хлеб | E224: Хлеб пшеничный | F224: 25 | G224: 72 | H224: 2.13 | I224: 0.21 | J224: 13.26 | K224: 119 | L224: 0.76
D225: хлеб черн. | E225: Хлеб ржаной | F225: 20 | G225: 181.3 | H225: 5.7 | I225: 1.1 | J225: 37.2 | K225: 120 | L225: 0.85
D226: 2 блюдо | E226: Гуляш | F226: 90 | G226: 368 | H226: 18 | I226: 30 | J226: 4 | K226: 89 | L226: 30.83
D227: кисломол. | E227: Сыр сливочный в индивидуальной упаковке | F227: 17 | G227: 72 | H227: 0 | I227: 0 | J227: 0 | K227: этикет. | L227: 7.5
D231: итого | F231: =SUM(F222:F230) -> 502 | G231: =SUM(G222:G230) -> 909.3 | H231: 28.83 | I231: 34.31 | J231: 98.46 | L231: =SUM(L222:L230) -> 57.99
A232: =A222 -> 2 | B232: =B222 -> 5 | C232: Обед | D232: закуска | E232: Фрукты в ассортименте (яблоко свежее) | F232: 150 | G232: 46 | H232: 0.4 | I232: 0 | J232: 11.3 | K232: 24 | L232: 13.65
D233: 1 блюдо | E233: Борщ с мясом и сметаной | F233: 200 | G233: 69 | H233: 3 | I233: 4 | J233: 4 | K233: 31 | L233: 13.92
D234: 2 блюдо | E234: Биточек мясной | F234: 90 | G234: 235 | H234: 20 | I234: 13 | J234: 9 | K234: 91 | L234: 29.06
D235: гарнир | E235: Рагу овощное с маслом | F235: 150 | G235: 87 | H235: 2 | I235: 5 | J235: 9 | K235: 22 | L235: 7.05
D236: сладкое
D237: хлеб бел. | E237: Хлеб пшеничный | F237: 45 | G237: 193 | H237: 2.13 | I237: 0.21 | J237: 13.26 | K237: 119 | L237: 1.36
D238: хлеб черн. | E238: Хлеб ржаной | F238: 25 | G238: 181.3 | H238: 5.7 | I238: 1.1 | J238: 37.2 | K238: 120 | L238: 1.06
D239: напиток | E239: Чай с сахаром | F239: 200 | G239: 14 | H239: 0 | I239: 0 | J239: 6 | K239: 114 | L239: 1.12
D243: итого | F243: =SUM(F232:F242) -> 860 | G243: =SUM(G232:G242) -> 825.3 | H243: 33.23 | I243: 23.31 | J243: 89.76 | L243: =SUM(L232:L242) -> 67.22
A244: =A222 -> 2 | B244: =B222 -> 5 | C244: Итого за день: | F244: =F231+F243 -> 1362 | G244: =G231+G243 -> 1734.6 | H244: =H231+H243 -> 62.06 | I244: =I231+I243 -> 57.62 | J244: =J231+J243 -> 188.22 | L244: 125.21
A245: 3 | B245: 1 | C245: Завтрак | D245: гор.блюдо | E245: Каша пшенная молочная с тыквой и маслом | F245: 205 | G245: 110 | H245: 4 | I245: 3 | J245: 17 | K245: 60 | L245: 17.86
D246: гор.напиток | E246: Чай с сахаром | F246: 200 | G246: 14 | H246: 0 | I246: 0 | J246: 6 | K246: 114 | L246: 1.12
D247: хлеб | E247: Хлеб пшеничный | F247: 30 | G247: 72 | H247: 2.13 | I247: 0.21 | J247: 13.26 | K247: 119 | L247: 0.91
D248: хлеб черн. | E248: Хлеб ржаной | F248: 30 | G248: 181.3 | H248: 5.7 | I248: 1.1 | J248: 37.2 | K248: 120 | L248: 1.27
D249: закуска | E249: Фрукты в ассортименте (яблоко свежее) | F249: 150 | G249: 46 | H249: 0.4 | I249: 0 | J249: 11.3 | K249: 24 | L249: 13.65
D250: 3 блюдо | E250: Молочный десерт | F250: 190 | G250: 287 | H250: 4 | I250: 7 | J250: 41 | K250: этикет. | L250: 33
D251: кисломол. | E251: Сыр порциями | F251: 15 | G251: 310 | H251: 24 | I251: 24 | J251: 0 | K251: 1 | L251: 6.6
D254: итого | F254: =SUM(F245:F253) -> 820 | G254: =SUM(G245:G253) -> 1020.3 | H254: =SUM(H245:H253) -> 40.23 | I254: =SUM(I245:I253) -> 35.31 | J254: =SUM(J245:J253) -> 125.76 | L254: =SUM(L245:L253) -> 74.41
A255: =A245 -> 3 | B255: =B245 -> 1 | C255: Обед | D255: закуска | E255: Горошек консервированный | F255: 60 | G255: 41 | H255: 3 | I255: 0 | J255: 7 | K255: 172 | L255: 7.5
D256: 1 блюдо | E256: Суп картофельный с фасолью | F256: 200 | G256: 56 | H256: 3 | I256: 3 | J256: 4 | K256: 41 | L256: 10.61
D257: 2 блюдо | E257: Филе птицы тушеное в томатном соусе | F257: 90 | G257: 203 | H257: 15 | I257: 13 | J257: 6 | K257: 80 | L257: 37.78
D258: гарнир | E258: Каша гречневая рассыпчатая с маслом | F258: 150 | G258: 140 | H258: 5 | I258: 3 | J258: 23 | K258: 54 | L258: 5.41
D259: сладкое
D260: хлеб бел. | E260: Хлеб пшеничный | F260: 20 | G260: 72 | H260: 2.13 | I260: 0.21 | J260: 13.26 | K260: 119 | L260: 0.6
D261: хлеб черн. | E261: Хлеб ржаной | F261: 20 | G261: 181.3 | H261: 5.7 | I261: 1.1 | J261: 37.2 | K261: 120 | L261: 0.85
D262: напиток | E262: Компот из сухофруктов | F262: 200 | G262: 29.74 | H262: 0.18 | I262: 0 | J262: 7.42 | K262: 98 | L262: 3.17
D267: итого | F267: =SUM(F255:F266) -> 740 | G267: =SUM(G255:G266) -> 723.04 | H267: 34.01 | I267: 20.31 | J267: 97.88 | L267: =SUM(L255:L266) -> 65.92
A268: =A245 -> 3 | B268: =B245 -> 1 | C268: Итого за день: | F268: =F254+F267 -> 1560 | G268: =G254+G267 -> 1743.34 | H268: 74.24 | I268: 55.62 | J268: 223.64 | L268: =L254+L267 -> 140.33
A269: 3 | B269: 2 | C269: Завтрак | D269: гор.блюдо | E269: Картофельное пюре с маслом | F269: 150 | G269: 113 | H269: 2 | I269: 5 | J269: 14 | K269: 50 | L269: 10.32
D270: гор.напиток | E270: Напиток плодово-ягодный витаминизированный | F270: 200 | G270: 29.2 | H270: 0 | I270: 0 | J270: 7 | K270: 104 | L270: 5.2
D271: хлеб | E271: Хлеб пшеничный | F271: 30 | G271: 72 | H271: 2.13 | I271: 0.21 | J271: 13.26 | K271: 119 | L271: 0.91
D272: хлеб черн. | E272: Хлеб ржаной | F272: 20 | G272: 181.3 | H272: 5.7 | I272: 1.1 | J272: 37.2 | K272: 120 | L272: 0.85
D273: закуска | E273: Огурцы порционные | F273: 60 | G273: 10 | H273: 0 | I273: 0 | J273: 2 | K273: 28 | L273: 6.6
D274: 2 блюдо | E274: Мясо тушеное | F274: 90 | G274: 294 | H274: 15 | I274: 25 | J274: 3 | K274: 88 | L274: 38.84
D279: итого | F279: =SUM(F269:F278) -> 550 | G279: =SUM(G269:G278) -> 699.5 | H279: 24.83 | I279: 31.31 | J279: 76.46 | L279: =SUM(L269:L278) -> 62.72
A280: 3 | B280: =B269 -> 2 | C280: Обед | D280: закуска | E280: Фрукты в ассортименте (яблоко свежее) | F280: 150 | G280: 46 | H280: 0.4 | I280: 0 | J280: 11.3 | K280: 24 | L280: 13.65
D281: 1 блюдо | E281: Борщ с мясом и сметаной | F281: 200 | G281: 69 | H281: 3 | I281: 4 | J281: 4 | K281: 31 | L281: 16.02
D282: 2 блюдо | E282: Курица запеченная с сыром | F282: 90 | G282: 306 | H282: 26 | I282: 22 | J282: 1 | K282: 82 | L282: 46.24
... 142 more rows
